[Event "Rapid del Mercoledì"]
[Site "Chess.com"]
[Date "2020.04.29"]
[Round "3"]
[White "paolo58pr"]
[Black "OMatteoWuO"]
[Result "1-0"]
[WhiteElo "1171"]
[BlackElo "1147"]
[TimeControl "720+3"]
[EndTime "12:46:44 PDT"]
[Termination "paolo58pr ha vinto per abbandono"]

1. e4 {[%clk 0:12:02.9]} 1... c5 {[%clk 0:11:57.5]} 2. c3 {[%clk 0:12:02.7]}
2... Nc6 {[%clk 0:11:34.1]} 3. Nf3 {[%clk 0:11:54.4]} 3... Nf6 {[%clk
0:10:25.3]} 4. e5 {[%clk 0:11:53.7]} 4... Nd5 {[%clk 0:10:03]} 5. d4 {[%clk
0:11:54.6]} 5... cxd4 {[%clk 0:09:54.6]} 6. Be2 {[%clk 0:11:53.6]} 6... e6
{[%clk 0:09:12.4]} 7. cxd4 {[%clk 0:11:51.9]} 7... d6 {[%clk 0:08:59.4]} 8. O-O
{[%clk 0:11:48.2]} 8... dxe5 {[%clk 0:08:45.4]} 9. dxe5 {[%clk 0:11:47.3]} 9...
Be7 {[%clk 0:08:31.2]} 10. Bb5 {[%clk 0:11:43.4]} 10... Bd7 {[%clk 0:07:49.9]}
11. Bxc6 {[%clk 0:11:25.9]} 11... Bxc6 {[%clk 0:07:34.6]} 12. Nd4 {[%clk
0:11:21.8]} 12... Qc7 {[%clk 0:06:59.9]} 13. Nxc6 {[%clk 0:11:15.9]} 13... bxc6
{[%clk 0:06:49.4]} 14. Bd2 {[%clk 0:11:11.6]} 14... Qxe5 {[%clk 0:06:39.2]} 15.
Re1 {[%clk 0:11:09.7]} 15... Qc7 {[%clk 0:06:29.1]} 16. Nc3 {[%clk 0:11:07.9]}
16... O-O {[%clk 0:06:03]} 17. Rc1 {[%clk 0:11:07.8]} 17... Rab8 {[%clk
0:05:39.4]} 18. b3 {[%clk 0:11:07]} 18... Rfd8 {[%clk 0:05:16.6]} 19. Qe2 {[%clk
0:11:06.9]} 19... Qd6 {[%clk 0:04:29.4]} 20. Ne4 {[%clk 0:10:57.1]} 20... Qa3
{[%clk 0:04:13.3]} 21. Bg5 {[%clk 0:10:39.8]} 21... Bxg5 {[%clk 0:03:58.8]} 22.
Nxg5 {[%clk 0:10:40]} 22... Qe7 {[%clk 0:03:36]} 23. Qh5 {[%clk 0:10:05.1]}
23... Nf6 {[%clk 0:03:30.5]} 24. Rxc6 {[%clk 0:09:51.1]} 24... Rd2 {[%clk
0:02:59.7]} 25. Qf3 {[%clk 0:09:23.9]} 25... Rxa2 {[%clk 0:02:40.2]} 26. Rec1
{[%clk 0:08:56.4]} 26... h6 {[%clk 0:02:19.9]} 27. Ne4 {[%clk 0:08:42.5]} 27...
Nxe4 {[%clk 0:02:08.4]} 28. Qxe4 {[%clk 0:08:42.4]} 28... Qd7 {[%clk 0:02:03.1]}
29. b4 {[%clk 0:08:27.7]} 29... Rd2 {[%clk 0:01:56.3]} 30. h3 {[%clk 0:08:24.7]}
30... Rd4 {[%clk 0:01:45.4]} 31. Qf3 {[%clk 0:08:19.6]} 31... Rdxb4 {[%clk
0:01:41.8]} 32. Rc7 {[%clk 0:08:15.7]} 32... Qd8 {[%clk 0:01:33.7]} 33. Qxf7+
{[%clk 0:08:15.2]} 1-0

[Event "Rapid del Mercoledì"]
[Site "Chess.com"]
[Date "2020.04.29"]
[Round "3"]
[White "fausto2p"]
[Black "Mrtre7"]
[Result "0-1"]
[WhiteElo "1050"]
[BlackElo "1340"]
[TimeControl "720+3"]
[EndTime "12:52:18 PDT"]
[Termination "Mrtre7 ha vinto per tempo"]

1. d4 {[%clk 0:12:02.7]} 1... d5 {[%clk 0:12:01]} 2. c4 {[%clk 0:12:02.4]} 2...
c6 {[%clk 0:12:01]} 3. Nc3 {[%clk 0:11:59.4]} 3... e6 {[%clk 0:11:56.1]} 4. Nf3
{[%clk 0:11:52]} 4... dxc4 {[%clk 0:11:56.3]} 5. a4 {[%clk 0:11:52.1]} 5... Bb4
{[%clk 0:11:49.8]} 6. e3 {[%clk 0:11:41.4]} 6... a5 {[%clk 0:11:42.9]} 7. Bxc4
{[%clk 0:11:34.9]} 7... b5 {[%clk 0:11:40.4]} 8. axb5 {[%clk 0:11:27]} 8... cxb5
{[%clk 0:11:41.6]} 9. Bxb5+ {[%clk 0:11:25.6]} 9... Bd7 {[%clk 0:11:43.3]} 10.
Bxd7+ {[%clk 0:11:08.1]} 10... Nxd7 {[%clk 0:11:39]} 11. O-O {[%clk 0:11:08.6]}
11... Ngf6 {[%clk 0:11:40.3]} 12. Na2 {[%clk 0:10:56.6]} 12... Bd6 {[%clk
0:11:34.6]} 13. Nc3 {[%clk 0:10:44.4]} 13... O-O {[%clk 0:11:35.6]} 14. b3
{[%clk 0:09:51.4]} 14... Rb8 {[%clk 0:11:13.9]} 15. Ba3 {[%clk 0:09:09.5]} 15...
Bxa3 {[%clk 0:10:08.6]} 16. Rxa3 {[%clk 0:09:09.6]} 16... Qb6 {[%clk 0:09:53.1]}
17. Qc2 {[%clk 0:08:04.7]} 17... Rfc8 {[%clk 0:09:51.4]} 18. Qd3 {[%clk
0:06:13.4]} 18... Qb4 {[%clk 0:09:36.6]} 19. Nb1 {[%clk 0:04:34.5]} 19... Rd8
{[%clk 0:07:41.4]} 20. Rc1 {[%clk 0:03:57.5]} 20... Rdc8 {[%clk 0:07:21.6]} 21.
Rxc8+ {[%clk 0:03:30.1]} 21... Rxc8 {[%clk 0:07:21.8]} 22. Qd1 {[%clk
0:02:04.3]} 22... Nb6 {[%clk 0:05:31.2]} 23. Ne5 {[%clk 0:01:31.7]} 23... Ne4
{[%clk 0:05:10.9]} 24. Nd3 {[%clk 0:01:19]} 24... Qb5 {[%clk 0:03:18.9]} 0-1

[Event "Rapid del Mercoledì"]
[Site "Chess.com"]
[Date "2020.04.29"]
[Round "3"]
[White "riccardocanossa"]
[Black "Delsoldato03"]
[Result "1-0"]
[WhiteElo "1142"]
[BlackElo "1214"]
[TimeControl "720+3"]
[EndTime "12:55:09 PDT"]
[Termination "riccardocanossa ha vinto per abbandono"]

1. d4 {[%clk 0:12:02.9]} 1... Nf6 {[%clk 0:11:58]} 2. c4 {[%clk 0:12:00.6]} 2...
e6 {[%clk 0:11:58]} 3. Nc3 {[%clk 0:11:54.2]} 3... Bb4 {[%clk 0:11:57.7]} 4. Bd2
{[%clk 0:11:54.3]} 4... O-O {[%clk 0:11:50.9]} 5. a3 {[%clk 0:11:52.7]} 5... Be7
{[%clk 0:11:46.7]} 6. Nf3 {[%clk 0:11:52.2]} 6... d5 {[%clk 0:11:45.1]} 7. e3
{[%clk 0:11:48.2]} 7... Nbd7 {[%clk 0:11:21.8]} 8. Bd3 {[%clk 0:11:45.6]} 8...
c5 {[%clk 0:11:07.5]} 9. cxd5 {[%clk 0:11:39.8]} 9... exd5 {[%clk 0:10:52.2]}
10. O-O {[%clk 0:11:32.1]} 10... Nb6 {[%clk 0:10:37]} 11. Qc2 {[%clk 0:11:16.5]}
11... h6 {[%clk 0:10:25.3]} 12. e4 {[%clk 0:10:59.2]} 12... dxe4 {[%clk
0:10:08.7]} 13. Nxe4 {[%clk 0:10:53.7]} 13... cxd4 {[%clk 0:10:04.6]} 14. Nxf6+
{[%clk 0:10:43.5]} 14... Bxf6 {[%clk 0:10:05.6]} 15. Bh7+ {[%clk 0:10:40.9]}
15... Kh8 {[%clk 0:10:04.3]} 16. Be4 {[%clk 0:10:26.4]} 16... Rb8 {[%clk
0:09:21.2]} 17. Bf4 {[%clk 0:10:07.3]} 17... Ra8 {[%clk 0:09:18.1]} 18. Rad1
{[%clk 0:09:57.3]} 18... Qe7 {[%clk 0:09:10.6]} 19. Nxd4 {[%clk 0:08:57.7]}
19... Rd8 {[%clk 0:09:01.6]} 20. Nf5 {[%clk 0:08:27.7]} 20... Bxf5 {[%clk
0:08:49.7]} 21. Bxf5 {[%clk 0:08:20.2]} 21... g6 {[%clk 0:08:11.7]} 22. Rfe1
{[%clk 0:07:29.4]} 22... Qf8 {[%clk 0:07:47]} 23. Bh3 {[%clk 0:06:44.2]} 23...
Bg7 {[%clk 0:07:34.7]} 24. Be5 {[%clk 0:05:15.3]} 24... Rxd1 {[%clk 0:07:07.4]}
25. Bxg7+ {[%clk 0:05:08.1]} 25... Qxg7 {[%clk 0:07:08.4]} 26. Rxd1 {[%clk
0:04:58.2]} 26... Qe5 {[%clk 0:06:38]} 27. g3 {[%clk 0:04:19]} 27... Re8 {[%clk
0:06:11]} 28. Qd2 {[%clk 0:03:25.9]} 28... Kg7 {[%clk 0:05:19.1]} 29. Kf1 {[%clk
0:02:43.4]} 29... Nc4 {[%clk 0:05:03.5]} 30. Qd4 {[%clk 0:02:33.5]} 30... Qxd4
{[%clk 0:04:55.6]} 31. Rxd4 {[%clk 0:02:32.3]} 31... Nxb2 {[%clk 0:04:51.4]} 32.
Rb4 {[%clk 0:02:33.6]} 32... Nd3 {[%clk 0:04:33.8]} 33. Rxb7 {[%clk 0:02:31.6]}
33... a6 {[%clk 0:04:00.1]} 34. Ra7 {[%clk 0:02:09.6]} 34... Re1+ {[%clk
0:03:36.3]} 35. Kg2 {[%clk 0:02:06.5]} 35... Re2 {[%clk 0:03:26.7]} 36. Rxa6
{[%clk 0:01:35.3]} 36... Rxf2+ {[%clk 0:03:28]} 37. Kg1 {[%clk 0:01:35.3]} 37...
Ra2 {[%clk 0:03:21.1]} 38. Ra7 {[%clk 0:01:26.3]} 38... Ne1 {[%clk 0:03:00.6]}
39. Be6 {[%clk 0:01:05]} 39... Nf3+ {[%clk 0:03:01.7]} 40. Kf1 {[%clk
0:01:01.4]} 40... Nxh2+ {[%clk 0:03:02.1]} 41. Kg1 {[%clk 0:00:59.7]} 41... Nf3+
{[%clk 0:02:47.6]} 42. Kf1 {[%clk 0:00:54.1]} 42... Ra1+ {[%clk 0:02:35.6]} 43.
Ke2 {[%clk 0:00:52.6]} 43... Ng5 {[%clk 0:02:35.7]} 44. Bb3 {[%clk 0:00:44.8]}
44... Ne6 {[%clk 0:02:08.1]} 45. Bxe6 {[%clk 0:00:42.5]} 1-0

[Event "Rapid del Mercoledì"]
[Site "Chess.com"]
[Date "2020.04.29"]
[Round "3"]
[White "SanSecondoPR"]
[Black "Luca090267"]
[Result "1-0"]
[WhiteElo "1283"]
[BlackElo "1364"]
[TimeControl "720+3"]
[EndTime "12:55:38 PDT"]
[Termination "SanSecondoPR ha vinto per abbandono"]

1. e4 {[%clk 0:12:02.9]} 1... e5 {[%clk 0:12:01.3]} 2. d4 {[%clk 0:12:02.8]}
2... exd4 {[%clk 0:12:01.7]} 3. c3 {[%clk 0:12:02.3]} 3... dxc3 {[%clk
0:12:01.4]} 4. Bc4 {[%clk 0:12:00.6]} 4... d6 {[%clk 0:11:55.5]} 5. Qb3 {[%clk
0:11:59.9]} 5... Qe7 {[%clk 0:11:32.2]} 6. Nxc3 {[%clk 0:11:58.9]} 6... Nf6
{[%clk 0:11:29.1]} 7. Nf3 {[%clk 0:11:57.4]} 7... h6 {[%clk 0:11:23.8]} 8. O-O
{[%clk 0:11:57.4]} 8... b6 {[%clk 0:11:18]} 9. Bf4 {[%clk 0:11:47.7]} 9... Bb7
{[%clk 0:11:15.1]} 10. Nd5 {[%clk 0:11:39.9]} 10... Nxd5 {[%clk 0:11:06.2]} 11.
exd5 {[%clk 0:11:37.5]} 11... Qd7 {[%clk 0:11:04.5]} 12. Rfe1+ {[%clk
0:11:29.3]} 12... Kd8 {[%clk 0:11:04.8]} 13. Bb5 {[%clk 0:11:18.9]} 13... c6
{[%clk 0:11:02]} 14. dxc6 {[%clk 0:11:14.7]} 14... Bxc6 {[%clk 0:11:03.4]} 15.
Bc4 {[%clk 0:10:56.5]} 15... Kc7 {[%clk 0:10:18.5]} 16. Bxf7 {[%clk 0:10:47.8]}
16... Na6 {[%clk 0:10:08.9]} 17. Be6 {[%clk 0:10:46]} 17... Qd8 {[%clk 0:10:04]}
18. Rac1 {[%clk 0:10:38.9]} 18... Nc5 {[%clk 0:10:04.1]} 19. Qe3 {[%clk
0:10:14.7]} 19... Kb7 {[%clk 0:08:59.5]} 20. Bh3 {[%clk 0:09:58.6]} 20... Bd7
{[%clk 0:08:39.3]} 21. b4 {[%clk 0:09:53.6]} 21... Bxh3 {[%clk 0:08:31.1]} 22.
bxc5 {[%clk 0:09:50.9]} 22... Bf5 {[%clk 0:08:07.9]} 23. c6+ {[%clk 0:09:44.9]}
23... Kc7 {[%clk 0:08:04.1]} 24. Nd4 {[%clk 0:09:31.3]} 24... Bc8 {[%clk
0:07:51.5]} 25. Qc3 {[%clk 0:09:19.9]} 25... a6 {[%clk 0:07:40.4]} 26. a4 {[%clk
0:09:13.8]} 26... Bg4 {[%clk 0:07:23.3]} 27. a5 {[%clk 0:09:00.1]} 27... b5
{[%clk 0:07:23.7]} 28. Qe3 {[%clk 0:08:51.6]} 28... g5 {[%clk 0:07:01.1]} 29.
Bg3 {[%clk 0:08:46.6]} 29... Rh7 {[%clk 0:06:52.7]} 30. Nb3 {[%clk 0:08:37.7]}
30... Qb8 {[%clk 0:05:51.7]} 31. Qe4 {[%clk 0:08:23.8]} 31... Re7 {[%clk
0:05:31.1]} 32. Qxg4 {[%clk 0:08:21.4]} 32... Rxe1+ {[%clk 0:05:31.2]} 33. Rxe1
{[%clk 0:08:17.1]} 33... Kxc6 {[%clk 0:05:28.9]} 34. Rc1+ {[%clk 0:08:09.5]}
34... Kd5 {[%clk 0:05:09.8]} 35. Qd4+ {[%clk 0:07:56.4]} 35... Ke6 {[%clk
0:05:07.1]} 36. Re1+ {[%clk 0:07:54.4]} 36... Kf7 {[%clk 0:05:04]} 37. Qd5+
{[%clk 0:07:46.9]} 37... Kg7 {[%clk 0:04:58.8]} 38. Nd4 {[%clk 0:07:41.4]} 38...
Kh8 {[%clk 0:04:41]} 39. Nc6 {[%clk 0:07:21.4]} 39... Qc7 {[%clk 0:04:27.4]} 40.
Re6 {[%clk 0:07:07.6]} 40... Rc8 {[%clk 0:04:25.5]} 41. Qd4+ {[%clk 0:06:16.1]}
41... Kh7 {[%clk 0:03:54.8]} 42. Qe4+ {[%clk 0:06:00]} 42... Kh8 {[%clk
0:03:23.5]} 43. Nd4 {[%clk 0:05:28.9]} 43... Qc1+ {[%clk 0:02:28]} 44. Qe1
{[%clk 0:05:24.9]} 44... Qc4 {[%clk 0:01:59.2]} 45. Nf3 {[%clk 0:05:10.2]} 45...
d5 {[%clk 0:01:34.2]} 46. Be5+ {[%clk 0:05:02]} 46... Bg7 {[%clk 0:01:32.4]} 47.
Bxg7+ {[%clk 0:05:00.7]} 47... Kxg7 {[%clk 0:01:33.3]} 48. Re7+ {[%clk
0:04:53.5]} 48... Kf8 {[%clk 0:01:25.2]} 49. Rh7 {[%clk 0:04:44.7]} 49... Kg8
{[%clk 0:01:16.4]} 50. Rxh6 {[%clk 0:04:38.1]} 50... Qc1 {[%clk 0:01:17.3]} 51.
Re6 {[%clk 0:04:32.8]} 51... Qxe1+ {[%clk 0:01:17.4]} 52. Rxe1 {[%clk
0:04:31.1]} 52... g4 {[%clk 0:01:18.7]} 53. Ne5 {[%clk 0:04:26.9]} 53... d4
{[%clk 0:01:06.7]} 54. Nxg4 {[%clk 0:04:18.2]} 54... d3 {[%clk 0:01:07.4]} 55.
Ne3 {[%clk 0:04:09.6]} 55... d2 {[%clk 0:01:07.5]} 56. Rd1 {[%clk 0:04:09.4]}
56... Rc1 {[%clk 0:01:07.7]} 57. Kf1 {[%clk 0:04:07.8]} 57... Kf7 {[%clk
0:01:04.5]} 58. Ke2 {[%clk 0:04:07.5]} 58... Rxd1 {[%clk 0:01:04.1]} 59. Kxd1
{[%clk 0:03:55]} 59... Ke6 {[%clk 0:01:04.2]} 60. Kxd2 {[%clk 0:03:55.8]} 60...
Kd6 {[%clk 0:01:04.9]} 61. Kc3 {[%clk 0:03:56.5]} 61... Kc5 {[%clk 0:01:00.1]}
62. Kb3 {[%clk 0:03:55.5]} 62... Kd4 {[%clk 0:00:51.5]} 63. Kb4 {[%clk
0:03:48.7]} 63... Kd3 {[%clk 0:00:50]} 64. h4 {[%clk 0:03:45.5]} 64... Ke2
{[%clk 0:00:51.5]} 65. h5 {[%clk 0:03:46]} 65... Kxf2 {[%clk 0:00:53.4]} 66. Nd5
{[%clk 0:03:43.7]} 66... Kxg2 {[%clk 0:00:52.9]} 67. h6 {[%clk 0:03:44]} 67...
Kf3 {[%clk 0:00:54.5]} 68. h7 {[%clk 0:03:44.8]} 68... Ke4 {[%clk 0:00:57]} 69.
Nc7 {[%clk 0:03:44.2]} 1-0

[Event "Rapid del Mercoledì"]
[Site "Chess.com"]
[Date "2020.04.29"]
[Round "4"]
[White "Delsoldato03"]
[Black "moha1812med"]
[Result "1-0"]
[WhiteElo "1230"]
[BlackElo "942"]
[TimeControl "720+3"]
[EndTime "13:01:55 PDT"]
[Termination "Delsoldato03 ha vinto per abbandono"]

1. e4 {[%clk 0:12:02.9]} 1... e5 {[%clk 0:11:57.1]} 2. Nf3 {[%clk 0:12:04.3]}
2... Nc6 {[%clk 0:11:53.5]} 3. Bb5 {[%clk 0:12:05.6]} 3... Nf6 {[%clk
0:11:51.6]} 4. d3 {[%clk 0:12:06.5]} 4... Bc5 {[%clk 0:11:49.8]} 5. Bxc6 {[%clk
0:11:58.8]} 5... dxc6 {[%clk 0:11:49.6]} 6. O-O {[%clk 0:11:46]} 6... O-O {[%clk
0:11:50.6]} 7. Nxe5 {[%clk 0:11:46.5]} 7... h6 {[%clk 0:11:30.1]} 8. Re1 {[%clk
0:11:21.6]} 8... Qd4 {[%clk 0:11:30.1]} 9. Nf3 {[%clk 0:11:03.4]} 9... Qd5
{[%clk 0:10:39.4]} 10. exd5 {[%clk 0:11:03.5]} 10... Bb4 {[%clk 0:09:42.7]} 11.
Bd2 {[%clk 0:10:51.5]} 11... Bc5 {[%clk 0:09:40.2]} 12. dxc6 {[%clk 0:10:49.1]}
12... bxc6 {[%clk 0:09:34.7]} 13. d4 {[%clk 0:10:41.5]} 13... Bd6 {[%clk
0:09:31.9]} 14. Ne5 {[%clk 0:10:37.9]} 1-0

[Event "Rapid del Mercoledì"]
[Site "Chess.com"]
[Date "2020.04.29"]
[Round "4"]
[White "paolo58pr"]
[Black "sirmale49"]
[Result "1/2-1/2"]
[WhiteElo "1220"]
[BlackElo "1386"]
[TimeControl "720+3"]
[EndTime "13:03:53 PDT"]
[Termination "Patta d'accordo"]

1. e4 {[%clk 0:12:02.9]} 1... e5 {[%clk 0:11:56.1]} 2. Nf3 {[%clk 0:11:57.5]}
2... Nc6 {[%clk 0:11:57.2]} 3. Bc4 {[%clk 0:11:57.3]} 3... Nd4 {[%clk
0:11:56.2]} 4. d3 {[%clk 0:11:54]} 4... Nxf3+ {[%clk 0:11:53.8]} 5. Qxf3 {[%clk
0:11:52.9]} 5... Qf6 {[%clk 0:11:54.7]} 6. Nd2 {[%clk 0:11:50.5]} 6... Qxf3
{[%clk 0:11:54.1]} 7. Nxf3 {[%clk 0:11:51.5]} 7... d6 {[%clk 0:11:53.8]} 8. Ng5
{[%clk 0:11:51.3]} 8... Nh6 {[%clk 0:11:50.1]} 9. O-O {[%clk 0:11:44.6]} 9...
Be7 {[%clk 0:11:46.1]} 10. Bd2 {[%clk 0:11:29.9]} 10... O-O {[%clk 0:11:28.6]}
11. f4 {[%clk 0:11:22.5]} 11... exf4 {[%clk 0:10:22.9]} 12. Bxf4 {[%clk
0:11:18.1]} 12... Bxg5 {[%clk 0:10:11]} 13. Bxg5 {[%clk 0:11:17]} 13... Be6
{[%clk 0:10:10.9]} 14. Bxe6 {[%clk 0:11:12]} 14... fxe6 {[%clk 0:10:10.3]} 15.
Rxf8+ {[%clk 0:11:11.5]} 15... Rxf8 {[%clk 0:10:11]} 16. Bxh6 {[%clk 0:11:12.2]}
16... gxh6 {[%clk 0:10:11]} 17. Rf1 {[%clk 0:11:13.2]} 17... Rxf1+ {[%clk
0:09:56.4]} 18. Kxf1 {[%clk 0:11:14.6]} 18... Kg7 {[%clk 0:09:58.1]} 19. Kf2
{[%clk 0:11:16.2]} 19... Kg6 {[%clk 0:10:00]} 20. Kf3 {[%clk 0:11:17.9]} 20...
Kg5 {[%clk 0:10:01.6]} 21. g3 {[%clk 0:11:16.4]} 21... e5 {[%clk 0:10:02.7]} 22.
c4 {[%clk 0:11:01.7]} 22... h5 {[%clk 0:10:03.2]} 23. h4+ {[%clk 0:11:01.1]}
23... Kg6 {[%clk 0:09:57.1]} 24. g4 {[%clk 0:11:01.2]} 24... h6 {[%clk
0:09:54.5]} 25. b4 {[%clk 0:10:55.7]} 25... hxg4+ {[%clk 0:09:51.8]} 26. Kxg4
{[%clk 0:10:56]} 26... h5+ {[%clk 0:09:53.3]} 27. Kf3 {[%clk 0:10:57.5]} 27...
a6 {[%clk 0:09:31.3]} 28. a4 {[%clk 0:10:56.5]} 28... b6 {[%clk 0:09:18.7]} 29.
Ke3 {[%clk 0:10:58.3]} 29... Kf6 {[%clk 0:09:16.4]} 30. d4 {[%clk 0:10:59.5]}
30... c6 {[%clk 0:09:14]} 31. d5 {[%clk 0:10:48.4]} 31... c5 {[%clk 0:09:10.9]}
32. b5 {[%clk 0:10:48.2]} 32... a5 {[%clk 0:09:10.8]} 33. Kf3 {[%clk 0:10:42.8]}
1/2-1/2

[Event "Rapid del Mercoledì"]
[Site "Chess.com"]
[Date "2020.04.29"]
[Round "4"]
[White "pedrak"]
[Black "laremaro"]
[Result "0-1"]
[WhiteElo "1653"]
[BlackElo "1710"]
[TimeControl "720+3"]
[EndTime "13:08:44 PDT"]
[Termination "laremaro ha vinto per abbandono"]

1. Nf3 {[%clk 0:12:02.9]} 1... Nf6 {[%clk 0:11:59.1]} 2. g3 {[%clk 0:12:03.8]}
2... c5 {[%clk 0:11:56.3]} 3. Bg2 {[%clk 0:12:05]} 3... Nc6 {[%clk 0:11:59]} 4.
O-O {[%clk 0:12:06.3]} 4... g6 {[%clk 0:12:01.1]} 5. d3 {[%clk 0:12:07.8]} 5...
Bg7 {[%clk 0:12:03]} 6. e4 {[%clk 0:12:09.3]} 6... d6 {[%clk 0:12:02.6]} 7. h3
{[%clk 0:12:07.5]} 7... O-O {[%clk 0:12:01.6]} 8. Be3 {[%clk 0:12:08.1]} 8... b6
{[%clk 0:10:55.7]} 9. c3 {[%clk 0:12:08.2]} 9... Bb7 {[%clk 0:10:56.7]} 10. Qc1
{[%clk 0:12:04.2]} 10... Re8 {[%clk 0:10:56.4]} 11. Nbd2 {[%clk 0:11:53.2]}
11... d5 {[%clk 0:10:52.1]} 12. e5 {[%clk 0:11:50.5]} 12... Nd7 {[%clk
0:10:23.4]} 13. d4 {[%clk 0:11:50.6]} 13... cxd4 {[%clk 0:10:20.3]} 14. cxd4
{[%clk 0:11:51.1]} 14... e6 {[%clk 0:10:20.8]} 15. Re1 {[%clk 0:11:28]} 15...
Rc8 {[%clk 0:10:21.5]} 16. Qd1 {[%clk 0:11:28.8]} 16... Nb4 {[%clk 0:10:04.9]}
17. Rf1 {[%clk 0:11:13.3]} 17... Ba6 {[%clk 0:10:04.2]} 18. a3 {[%clk
0:10:42.7]} 18... Nc2 {[%clk 0:09:44.8]} 19. Rc1 {[%clk 0:10:38.6]} 19... Nxe3
{[%clk 0:09:36.5]} 20. fxe3 {[%clk 0:10:37.7]} 20... Bxf1 {[%clk 0:09:35.4]} 21.
Bxf1 {[%clk 0:10:39.2]} 21... Rxc1 {[%clk 0:09:35.7]} 22. Qxc1 {[%clk
0:10:40.6]} 22... Qc8 {[%clk 0:09:35.8]} 23. Qb1 {[%clk 0:10:37.1]} 23... Bh6
{[%clk 0:09:29.5]} 24. Kf2 {[%clk 0:10:37.4]} 24... a6 {[%clk 0:09:18.7]} 25. g4
{[%clk 0:10:35.9]} 25... b5 {[%clk 0:08:58.5]} 26. g5 {[%clk 0:10:35.6]} 26...
Bf8 {[%clk 0:08:58.4]} 27. Bd3 {[%clk 0:10:33]} 27... Nb6 {[%clk 0:08:56.8]} 28.
h4 {[%clk 0:10:27.3]} 28... Nc4 {[%clk 0:08:54.1]} 29. Nxc4 {[%clk 0:10:28.7]}
29... bxc4 {[%clk 0:08:38]} 30. Bc2 {[%clk 0:10:29.8]} 30... c3 {[%clk
0:08:35.1]} 31. b4 {[%clk 0:10:30.6]} 31... Qc7 {[%clk 0:08:17.3]} 32. h5 {[%clk
0:10:29.9]} 32... Rc8 {[%clk 0:08:18.5]} 33. hxg6 {[%clk 0:10:27.8]} 33... hxg6
{[%clk 0:08:14.2]} 34. Nh4 {[%clk 0:10:11.9]} 34... Qb7 {[%clk 0:07:45.2]} 35.
Bxg6 {[%clk 0:08:55.1]} 35... fxg6 {[%clk 0:07:17.7]} 36. Qxg6+ {[%clk
0:08:55.2]} 36... Bg7 {[%clk 0:07:18.7]} 37. Qxe6+ {[%clk 0:08:56.3]} 37... Qf7+
{[%clk 0:07:20.4]} 38. Qf5 {[%clk 0:08:51.8]} 38... Qxf5+ {[%clk 0:07:20.3]} 39.
Nxf5 {[%clk 0:08:53.2]} 39... c2 {[%clk 0:07:21.8]} 40. Ne7+ {[%clk 0:08:54.1]}
40... Kf7 {[%clk 0:07:22.4]} 41. Nxc8 {[%clk 0:08:50.7]} 41... c1=Q {[%clk
0:07:23.3]} 42. Nd6+ {[%clk 0:08:51.4]} 42... Kg8 {[%clk 0:07:12.5]} 43. e6
{[%clk 0:08:52.2]} 43... Bf8 {[%clk 0:07:11.9]} 44. Nf5 {[%clk 0:08:49.6]} 44...
Qc2+ {[%clk 0:07:11.9]} 0-1

[Event "Rapid del Mercoledì"]
[Site "Chess.com"]
[Date "2020.04.29"]
[Round "4"]
[White "ottovolante"]
[Black "Mrtre7"]
[Result "0-1"]
[WhiteElo "1012"]
[BlackElo "1351"]
[TimeControl "720+3"]
[EndTime "13:14:04 PDT"]
[Termination "Mrtre7 ha vinto per abbandono"]

1. Nf3 {[%clk 0:12:02.9]} 1... d5 {[%clk 0:12:00.2]} 2. d4 {[%clk 0:11:49.4]}
2... Nf6 {[%clk 0:11:53.6]} 3. h3 {[%clk 0:11:47.6]} 3... c5 {[%clk 0:11:49.8]}
4. e3 {[%clk 0:11:45.9]} 4... Nc6 {[%clk 0:11:50.1]} 5. Bb5 {[%clk 0:11:38.5]}
5... a6 {[%clk 0:11:01.5]} 6. Bxc6+ {[%clk 0:11:38]} 6... bxc6 {[%clk 0:11:03]}
7. Bd2 {[%clk 0:11:28.2]} 7... cxd4 {[%clk 0:10:31.1]} 8. Nxd4 {[%clk
0:11:27.2]} 8... c5 {[%clk 0:10:18]} 9. Nf3 {[%clk 0:11:05.9]} 9... Bf5 {[%clk
0:10:08]} 10. O-O {[%clk 0:11:01.8]} 10... e6 {[%clk 0:10:06.9]} 11. Bc3 {[%clk
0:10:42.3]} 11... Bd6 {[%clk 0:09:56.7]} 12. Nh2 {[%clk 0:10:09.8]} 12... O-O
{[%clk 0:09:52]} 13. f4 {[%clk 0:10:05]} 13... Ne4 {[%clk 0:09:38.9]} 14. Be1
{[%clk 0:09:50.3]} 14... d4 {[%clk 0:09:04]} 15. exd4 {[%clk 0:09:01.8]} 15...
cxd4 {[%clk 0:09:04.1]} 16. Nd2 {[%clk 0:08:27.6]} 16... Rc8 {[%clk 0:08:02.2]}
17. Nxe4 {[%clk 0:08:27.6]} 17... Bxe4 {[%clk 0:07:52.2]} 18. Rc1 {[%clk
0:08:22]} 18... Qb6 {[%clk 0:07:33.6]} 19. Bf2 {[%clk 0:08:21]} 19... e5 {[%clk
0:05:54.9]} 20. b3 {[%clk 0:07:59.4]} 20... Ba3 {[%clk 0:05:47.7]} 21. Rb1
{[%clk 0:07:33.1]} 21... Bxc2 {[%clk 0:05:43.8]} 22. Qd2 {[%clk 0:07:31.7]}
22... Bxb1 {[%clk 0:04:56]} 23. fxe5 {[%clk 0:07:31]} 23... Rc2 {[%clk
0:04:22.6]} 24. Qg5 {[%clk 0:06:53.8]} 24... Rxf2 {[%clk 0:04:09.6]} 25. Rxf2
{[%clk 0:06:52.1]} 25... d3 {[%clk 0:03:48.2]} 26. Qd2 {[%clk 0:06:39]} 26...
Bb4 {[%clk 0:03:45.7]} 27. Qd1 {[%clk 0:06:35.4]} 27... Bc2 {[%clk 0:03:43.6]}
28. Qc1 {[%clk 0:06:23.8]} 28... Bc5 {[%clk 0:03:40.9]} 29. Qd2 {[%clk
0:06:21.2]} 29... Bxf2+ {[%clk 0:03:41.3]} 30. Qxf2 {[%clk 0:06:20.6]} 30...
Qxf2+ {[%clk 0:03:37.3]} 31. Kxf2 {[%clk 0:06:21.4]} 31... Rd8 {[%clk
0:03:37.9]} 32. Nf3 {[%clk 0:06:23]} 32... d2 {[%clk 0:03:38.6]} 33. Nxd2 {[%clk
0:06:17.4]} 33... Rxd2+ {[%clk 0:03:38.8]} 34. Ke3 {[%clk 0:06:18.6]} 34... Rxg2
{[%clk 0:03:40.2]} 0-1